fUSD/lending_fUSD_20250824
["ID","MTS","AMOUNT","RATE_DAILY","PERIOD"]
[381114530,1756051844576,-400.0,0.00021917,2]
[381114531,1756051844585,-400.0,0.00021917,2]
[381114532,1756051844597,-400.0,0.00021917,2]
[381114533,1756051844606,-400.0,0.00021917,2]
[381114534,1756051844615,-400.0,0.00021917,2]
[381114535,1756051844625,-702.12056363,0.00021917,2]
[381114536,1756051844656,-145.90943637,0.00021917,2]
[381114537,1756051844665,-400.0,0.00021917,2]
[381114538,1756051844674,-400.0,0.00021917,2]
[381114539,1756051844683,-406.68,0.00021917,2]
[381114540,1756051844693,-400.0,0.00021917,2]
[381114541,1756051844702,-420.66,0.00021917,2]
[381114542,1756051844711,-347.38056363,0.00021917,2]
[381114543,1756051844740,-52.61943637,0.00021917,2]
[381114544,1756051844749,-692.94,0.00021917,2]
[381114545,1756051844759,-1017.93,0.00021917,2]
[381114546,1756051844768,-400.0,0.00021917,2]
[381114547,1756051844778,-400.0,0.00021917,2]
[381114548,1756051844787,-44.47345708,0.00021917,2]
[381114549,1756051844889,-355.52654292,0.00021917,2]
[381114550,1756051844900,-151.0,0.00021917,2]
[381114551,1756051844909,-638.51735708,0.00021917,2]
[381114552,1756051845251,-222.49264292,0.00021917,2]
[381114553,1756051845272,-400.0,0.00021917,2]
[381114554,1756051845283,-193.33322779,0.00021917,2]
[381114555,1756051845293,-151.0,0.00021917,2]
[381114556,1756051845302,-400.0,0.00021917,2]
[381114557,1756051845312,-400.0,0.00021917,2]
[381114558,1756051845322,-400.0,0.00021917,2]
[381114559,1756051845332,-151.0,0.00021917,2]
[381114560,1756051845342,-426.18,0.00021917,2]
[381114561,1756051845352,-724.63,0.00021917,2]
[381114562,1756051845362,-400.0,0.00021917,2]
[381114563,1756051845372,-151.0,0.00021917,2]
[381114564,1756051845382,-400.0,0.00021917,2]
[381114565,1756051845392,-400.0,0.00021917,2]
[381114566,1756051845402,-400.0,0.00021917,2]
[381114567,1756051845413,-400.0,0.00021917,2]
[381114568,1756051845423,-400.0,0.00021917,2]
[381114569,1756051845433,-692.42,0.00021917,2]
[381114570,1756051845443,-942.84,0.00021917,2]
[381114571,1756051845453,-400.0,0.00021917,2]
[381114572,1756051845463,-400.0,0.00021917,2]
[381114573,1756051845474,-151.0,0.00021917,2]
[381114574,1756051845484,-725.53,0.00021917,2]
[381114575,1756051845493,-400.0,0.00021917,2]
[381114576,1756051845503,-500.0,0.00021917,2]
[381114577,1756051845512,-500.0,0.00021917,2]
[381114578,1756051845523,-500.0,0.00021917,2]
[381114579,1756051845532,-500.0,0.00021917,2]
[381114580,1756051845544,-500.0,0.00021917,2]
[381114581,1756051845556,-500.0,0.00021917,2]
[381114582,1756051845566,-420.7,0.00021917,2]
[381114583,1756051845577,-500.0,0.00021917,2]
[381114584,1756051845588,-500.0,0.00021917,2]
[381114585,1756051845597,-500.0,0.00021917,2]
[381114586,1756051845606,-151.0,0.00021917,2]
[381114587,1756051845616,-400.0,0.00021917,2]
[381114588,1756051845626,-151.0,0.00021917,2]
[381114589,1756051845636,-400.0,0.00021917,2]
[381114590,1756051845645,-188.67097,0.00021917,2]
[381114591,1756051845655,-151.0,0.00021917,2]
[381114592,1756051845664,-400.0,0.00021917,2]
[381114593,1756051845675,-2029.69,0.00021917,2]
[381114594,1756051845684,-2204.08,0.00021917,2]
[381114595,1756051845694,-151.0,0.00021917,2]
[381114596,1756051845704,-400.0,0.00021917,2]
[381114597,1756051845714,-400.0,0.00021917,2]
[381114598,1756051845724,-151.0,0.00021917,2]
[381114600,1756051845734,-737.06,0.00021917,2]
[381114601,1756051845743,-151.0,0.00021917,2]
[381114603,1756051845753,-681.94,0.00021917,2]
[381114604,1756051845763,-400.0,0.00021917,2]
[381114605,1756051845775,-400.0,0.00021917,2]
[381114606,1756051845785,-400.0,0.00021917,2]
[381114607,1756051845794,-151.0,0.00021917,2]
[381114608,1756051845804,-402.99928281,0.00021917,2]
[381114609,1756051845813,-400.0,0.00021917,2]
[381114610,1756051845823,-1078.06,0.00021917,2]
[381114611,1756051845833,-856.9,0.00021917,2]
[381114612,1756051845843,-873.63,0.00021917,2]
[381114613,1756051845852,-151.0,0.00021917,2]
[381114614,1756051845862,-809.07,0.00021917,2]
[381114615,1756051845871,-400.0,0.00021917,2]
[381114616,1756051845881,-790.63,0.00021917,2]
[381114617,1756051845891,-671.02,0.00021917,2]
[381114618,1756051845901,-1543.32,0.00021917,2]
[381114619,1756051845911,-400.0,0.00021917,2]
[381114620,1756051845922,-878.65,0.00021917,2]
[381114621,1756051845931,-400.0,0.00021917,2]
[381114622,1756051845941,-151.0,0.00021917,2]
[381114623,1756051845951,-400.0,0.00021917,2]
[381114624,1756051845960,-151.0,0.00021917,2]
[381114625,1756051845969,-151.0,0.00021917,2]
[381114626,1756051845979,-151.0,0.00021917,2]
[381114627,1756051845988,-500.0,0.00021917,2]
[381114628,1756051845997,-500.0,0.00021917,2]
[381114629,1756051846005,-500.0,0.00021917,2]
[381114630,1756051846015,-500.0,0.00021917,2]
[381114631,1756051846025,-554.53,0.00021917,2]
[381114632,1756051846035,-500.0,0.00021917,2]
[381114633,1756051846045,-151.0,0.00021917,2]
[381114634,1756051846055,-830.46,0.00021917,2]
[381114635,1756051846064,-500.0,0.00021917,2]
[381114636,1756051846074,-400.0,0.00021917,2]
[381114637,1756051846088,-500.0,0.00021917,2]
[381114638,1756051846098,-500.0,0.00021917,2]
[381114639,1756051846107,-151.0,0.00021917,2]
[381114640,1756051846117,-400.0,0.00021917,2]
[381114641,1756051846127,-477.82084085,0.00021917,2]
[381114642,1756051846137,-151.0,0.00021917,2]
[381114643,1756051846147,-400.0,0.00021917,2]
[381114644,1756051846156,-151.0,0.00021917,2]
[381114645,1756051846166,-847.66,0.00021917,2]
[381114646,1756051846175,-151.0,0.00021917,2]
[381114647,1756051846185,-400.0,0.00021917,2]
[381114648,1756051846195,-500.0,0.00021917,2]
[381114649,1756051846205,-151.0,0.00021917,2]
[381114650,1756051846214,-400.0,0.00021917,2]
[381114651,1756051846224,-666.13,0.00021917,2]
[381114652,1756051846234,-400.0,0.00021917,2]
[381114653,1756051846245,-753.3,0.00021917,2]
[381114654,1756051846254,-400.0,0.00021917,2]
[381114655,1756051846263,-151.0,0.00021917,2]
[381114656,1756051846274,-151.0,0.00021917,2]
[381114657,1756051846284,-400.0,0.00021917,2]
[381114658,1756051846293,-151.0,0.00021917,2]
[381114659,1756051846302,-151.0,0.00021917,2]
[381114660,1756051846312,-158.821272,0.00021917,2]
[381114661,1756051846321,-514.99,0.00021917,2]
[381114662,1756051846331,-151.0,0.00021917,2]
[381114663,1756051846340,-400.0,0.00021917,2]
[381114664,1756051846350,-1025.68,0.00021917,2]
[381114665,1756051846359,-400.0,0.00021917,2]
[381114666,1756051846369,-682.05,0.00021917,2]
[381114667,1756051846379,-400.0,0.00021917,2]
[381114668,1756051846388,-400.0,0.00021917,2]
[381114669,1756051846397,-400.0,0.00021917,2]
[381114670,1756051846407,-400.0,0.00021917,2]
[381114671,1756051846418,-400.0,0.00021917,2]
[381114672,1756051846428,-400.0,0.00021917,2]
[381114673,1756051846437,-400.0,0.00021917,2]
[381114674,1756051846447,-475.18,0.00021917,2]
[381114675,1756051846457,-684.64,0.00021917,2]
[381114676,1756051846466,-151.0,0.00021917,2]
[381114677,1756051846475,-1179.0,0.00021917,2]
[381114678,1756051846485,-400.0,0.00021917,2]
[381114679,1756051846495,-737.62,0.00021917,2]
[381114680,1756051846505,-400.0,0.00021917,2]
[381114681,1756051846514,-400.0,0.00021917,2]
[381114682,1756051846525,-666.3,0.00021917,2]
[381114683,1756051846535,-868.94,0.00021917,2]
[381114684,1756051846545,-400.0,0.00021917,2]
[381114685,1756051846556,-709.61,0.00021917,2]
[381114686,1756051846566,-400.0,0.00021917,2]
[381114687,1756051846575,-400.0,0.00021917,2]
[381114688,1756051846587,-400.0,0.00021917,2]
[381114689,1756051846596,-1136.52,0.00021917,2]
[381114690,1756051846606,-671.3,0.00021917,2]
[381114691,1756051846616,-757.13,0.00021917,2]
[381114692,1756051846627,-400.0,0.00021917,2]
[381114693,1756051846637,-401.34356084,0.00021917,2]
[381114694,1756051846646,-805.87,0.00021917,2]
[381114695,1756051846656,-151.0,0.00021917,2]
[381114696,1756051846666,-400.0,0.00021917,2]
[381114697,1756051846675,-400.0,0.00021917,2]
[381114698,1756051846684,-765.5,0.00021917,2]
[381114699,1756051846694,-1455.42,0.00021917,2]
[381114700,1756051846703,-400.0,0.00021917,2]
[381114701,1756051846712,-575.9,0.00021917,2]
[381114702,1756051846722,-575.9,0.00021917,2]
[381114703,1756051846731,-575.9,0.00021917,2]
[381114704,1756051846742,-575.9,0.00021917,2]
[381114705,1756051846752,-575.9,0.00021917,2]
[381114706,1756051846761,-575.9,0.00021917,2]
[381114707,1756051846771,-575.9,0.00021917,2]
[381114708,1756051846781,-575.9,0.00021917,2]
[381114709,1756051846790,-400.0,0.00021917,2]
[381114710,1756051846800,-575.9,0.00021917,2]
[381114711,1756051846810,-151.0,0.00021917,2]
[381114712,1756051846820,-1509.74,0.00021917,2]
[381114713,1756051846829,-575.9,0.00021917,2]
[381114714,1756051846839,-575.9,0.00021917,2]
[381114715,1756051846848,-400.0,0.00021917,2]
[381114716,1756051846858,-575.9,0.00021917,2]
[381114717,1756051846868,-575.9,0.00021917,2]
[381114718,1756051846877,-575.9,0.00021917,2]
[381114719,1756051846888,-400.0,0.00021917,2]
[381114720,1756051846897,-575.9,0.00021917,2]
[381114721,1756051846907,-575.9,0.00021917,2]
[381114722,1756051846916,-400.0,0.00021917,2]
[381114723,1756051846926,-689.63,0.00021917,2]
[381114724,1756051846936,-1287.59,0.00021917,2]
[381114725,1756051846946,-400.0,0.00021917,2]
[381114726,1756051846955,-400.0,0.00021917,2]
[381114727,1756051846965,-793.4,0.00021917,2]
[381114728,1756051846974,-793.4,0.00021917,2]
[381114729,1756051846983,-793.4,0.00021917,2]
[381114730,1756051846993,-793.4,0.00021917,2]
[381114731,1756051847002,-793.4,0.00021917,2]
[381114732,1756051847013,-793.4,0.00021917,2]
[381114733,1756051847023,-793.4,0.00021917,2]
[381114734,1756051847033,-793.4,0.00021917,2]
[381114735,1756051847043,-793.4,0.00021917,2]
[381114736,1756051847052,-793.4,0.00021917,2]
[381114737,1756051847062,-793.4,0.00021917,2]
[381114738,1756051847071,-793.4,0.00021917,2]
[381114739,1756051847081,-793.4,0.00021917,2]
[381114740,1756051847090,-793.4,0.00021917,2]
[381114741,1756051847100,-793.4,0.00021917,2]
[381114742,1756051847109,-793.4,0.00021917,2]
[381114743,1756051847119,-400.0,0.00021917,2]
[381114744,1756051847129,-400.0,0.00021917,2]
[381114745,1756051847139,-465.91,0.00021917,2]
[381114746,1756051847149,-400.0,0.00021917,2]
[381114747,1756051847158,-400.0,0.00021917,2]
[381114748,1756051847168,-471.02,0.00021917,2]
[381114749,1756051847178,-947.07,0.00021917,2]
[381114750,1756051847187,-400.0,0.00021917,2]
[381114751,1756051847197,-151.0,0.00021917,2]
[381114752,1756051847206,-862.44,0.00021917,2]
[381114753,1756051847215,-151.0,0.00021917,2]
[381114754,1756051847224,-741.67,0.00021917,2]
[381114755,1756051847234,-151.0,0.00021917,2]
[381114756,1756051847243,-426.6,0.00021917,2]
[381114757,1756051847252,-400.0,0.00021917,2]
[381114758,1756051847262,-831.17,0.00021917,2]
[381114759,1756051847271,-976.49,0.00021917,2]
[381114760,1756051847281,-157.322477,0.00021917,2]
[381114761,1756051847291,-400.0,0.00021917,2]
[381114762,1756051847300,-400.0,0.00021917,2]
[381114763,1756051847309,-151.0,0.00021917,2]
[381114764,1756051847320,-400.0,0.00021917,2]
[381114765,1756051847331,-151.0,0.00021917,2]
[381114766,1756051847341,-1084.47,0.00021917,2]
[381114767,1756051847351,-400.0,0.00021917,2]
[381114768,1756051847360,-532.82,0.00021917,2]
[381114769,1756051847370,-151.0,0.00021917,2]
[381114770,1756051847379,-400.0,0.00021917,2]
[381114771,1756051847389,-151.0,0.00021917,2]
[381114772,1756051847399,-400.0,0.00021917,2]
[381114773,1756051847408,-401.26739193,0.00021917,2]
[381114774,1756051847418,-587.84,0.00021917,2]
[381114775,1756051847427,-400.0,0.00021917,2]
[381114776,1756051847437,-403.4390507,0.00021917,2]
[381114777,1756051847447,-959.4,0.00021917,2]
[381114778,1756051847456,-151.0,0.00021917,2]
[381114779,1756051847466,-400.0,0.00021917,2]
[381114780,1756051847476,-400.0,0.00021917,2]
[381114781,1756051847485,-400.0,0.00021917,2]
[381114782,1756051847494,-454.44,0.00021917,2]
[381114783,1756051847504,-1459.22,0.00021917,2]
[381114784,1756051847513,-1334.02,0.00021917,2]
[381114785,1756051847523,-588.32,0.00021917,2]
[381114786,1756051847532,-987.12,0.00021917,2]
[381114787,1756051847542,-614.78,0.00021917,2]
[381114788,1756051847555,-400.0,0.00021917,2]
[381114789,1756051847564,-554.97,0.00021917,2]
[381114790,1756051847573,-400.0,0.00021917,2]
[381114791,1756051847583,-770.29,0.00021917,2]
[381114792,1756051847593,-546.97,0.00021917,2]
[381114793,1756051847603,-426.52,0.00021917,2]
[381114794,1756051847615,-400.0,0.00021917,2]
[381114795,1756051847627,-400.0,0.00021917,2]
[381114796,1756051847637,-228.7204712,0.00021917,2]
[381114797,1756051847646,-400.0,0.00021917,2]
[381114798,1756051847655,-400.0,0.00021917,2]
[381114799,1756051847664,-400.0,0.00021917,2]
[381114800,1756051847674,-400.0,0.00021917,2]
[381114801,1756051847683,-400.0,0.00021917,2]
[381114802,1756051847692,-872.74,0.00021917,2]
[381114803,1756051847702,-400.0,0.00021917,2]
[381114804,1756051847711,-400.0,0.00021917,2]
[381114805,1756051847720,-151.0,0.00021917,2]
[381114806,1756051847729,-508.85,0.00021917,2]
[381114807,1756051847739,-400.0,0.00021917,2]
[381114808,1756051847748,-500.0,0.00021917,2]
[381114809,1756051847757,-500.0,0.00021917,2]
[381114810,1756051847767,-1109.64,0.00021917,2]
[381114811,1756051847776,-500.0,0.00021917,2]
[381114812,1756051847786,-696.03,0.00021917,2]
[381114813,1756051847795,-500.0,0.00021917,2]
[381114814,1756051847804,-500.0,0.00021917,2]
[381114815,1756051847813,-500.0,0.00021917,2]
[381114816,1756051847822,-500.0,0.00021917,2]
[381114817,1756051847831,-500.0,0.00021917,2]
[381114818,1756051847840,-500.0,0.00021917,2]
[381114819,1756051847850,-500.0,0.00021917,2]
[381114820,1756051847859,-400.0,0.00021917,2]
[381114821,1756051847868,-500.0,0.00021917,2]
[381114822,1756051847878,-500.0,0.00021917,2]
[381114823,1756051847887,-500.0,0.00021917,2]
[381114824,1756051847897,-500.0,0.00021917,2]
[381114825,1756051847907,-500.0,0.00021917,2]
[381114826,1756051847917,-500.0,0.00021917,2]
[381114827,1756051847926,-507.93,0.00021917,2]
[381114828,1756051847936,-400.0,0.00021917,2]
[381114829,1756051847945,-153.231833,0.00021917,2]
[381114830,1756051847955,-400.0,0.00021917,2]
[381114831,1756051847964,-400.0,0.00021917,2]
[381114832,1756051847973,-597.38,0.00021917,2]
[381114833,1756051847983,-151.0,0.00021917,2]
[381114834,1756051847992,-400.0,0.00021917,2]
[381114835,1756051848001,-400.0,0.00021917,2]
[381114836,1756051848011,-535.41,0.00021917,2]
[381114837,1756051848020,-585.74,0.00021917,2]
[381114838,1756051848030,-635.69,0.00021917,2]
[381114839,1756051848040,-400.0,0.00021917,2]
[381114840,1756051848050,-814.59,0.00021917,2]
[381114841,1756051848059,-151.0,0.00021917,2]
[381114842,1756051848069,-400.0,0.00021917,2]
[381114843,1756051848078,-687.7,0.00021917,2]
[381114844,1756051848087,-157.21708,0.00021917,2]
[381114845,1756051848097,-502.86,0.00021917,2]
[381114846,1756051848106,-151.0,0.00021917,2]
[381114847,1756051848115,-400.0,0.00021917,2]
[381114848,1756051848125,-1167.17,0.00021917,2]
[381114849,1756051848134,-654.22,0.00021917,2]
[381114850,1756051848143,-665.3,0.00021917,2]
[381114851,1756051848153,-1249.51,0.00021917,2]
[381114852,1756051848162,-763.23,0.00021917,2]
[381114853,1756051848172,-400.0,0.00021917,2]
[381114854,1756051848181,-278.20642177,0.00021917,2]
[381114855,1756051848190,-601.52,0.00021917,2]
[381114856,1756051848200,-400.0,0.00021917,2]
[381114857,1756051848210,-150.196352,0.00021917,2]
[381114858,1756051848219,-151.0,0.00021917,2]
[381114859,1756051848229,-500.0,0.00021917,2]
[381114860,1756051848241,-500.0,0.00021917,2]
[381114861,1756051848251,-400.0,0.00021917,2]
[381114862,1756051848260,-500.0,0.00021917,2]
[381114863,1756051848269,-400.0,0.00021917,2]
[381114864,1756051848279,-500.0,0.00021917,2]
[381114865,1756051848289,-500.0,0.00021917,2]
[381114866,1756051848298,-500.0,0.00021917,2]
[381114867,1756051848307,-500.0,0.00021917,2]
[381114868,1756051848317,-500.0,0.00021917,2]
[381114869,1756051848326,-592.93089682,0.00021917,2]
[381114870,1756051848335,-151.0,0.00021917,2]
[381114871,1756051848345,-400.0,0.00021917,2]
[381114872,1756051848355,-400.0,0.00021917,2]
[381114873,1756051848364,-1384.18,0.00021917,2]
[381114874,1756051848373,-991.56,0.00021917,2]
[381114875,1756051848383,-400.0,0.00021917,2]
[381114876,1756051848392,-151.0,0.00021917,2]
[381114877,1756051848402,-400.0,0.00021917,2]
[381114878,1756051848414,-582.2,0.00021917,2]
[381114879,1756051848423,-400.0,0.00021917,2]
[381114880,1756051848432,-400.0,0.00021917,2]
[381114881,1756051848442,-151.0,0.00021917,2]
[381114882,1756051848451,-400.0,0.00021917,2]
[381114883,1756051848460,-214.053594,0.00021917,2]
[381114884,1756051848470,-847.28,0.00021917,2]
[381114885,1756051848479,-214.053594,0.00021917,2]
[381114886,1756051848488,-400.0,0.00021917,2]
[381114887,1756051848498,-2145.23,0.00021917,2]
[381114888,1756051848508,-748.44,0.00021917,2]
[381114889,1756051848519,-400.0,0.00021917,2]
[381114890,1756051848528,-400.0,0.00021917,2]
[381114891,1756051848538,-400.0,0.00021917,2]
[381114892,1756051848550,-155.016019,0.00021917,2]
[381114893,1756051848561,-400.0,0.00021917,2]
[381114894,1756051848571,-969.3,0.00021917,2]
[381114895,1756051848581,-1188.64,0.00021917,2]
[381114896,1756051848591,-400.0,0.00021917,2]
[381114897,1756051848600,-400.0,0.00021917,2]
[381114898,1756051848610,-400.0,0.00021917,2]
[381114899,1756051848619,-657.51,0.00021917,2]
[381114900,1756051848629,-400.0,0.00021917,2]
[381114901,1756051848638,-400.0,0.00021917,2]
[381114902,1756051848648,-400.0,0.00021917,2]
[381114903,1756051848658,-1648.35,0.00021917,2]
[381114904,1756051848668,-1119.27,0.00021917,2]
[381114905,1756051848677,-1169.77,0.00021917,2]
[381114906,1756051848687,-650.22,0.00021917,2]
[381114907,1756051848696,-151.0,0.00021917,2]
[381114908,1756051848705,-156.484565,0.00021917,2]
[381114909,1756051848716,-400.0,0.00021917,2]
[381114910,1756051848725,-400.0,0.00021917,2]
[381114911,1756051848735,-400.0,0.00021917,2]
[381114912,1756051848745,-1481.99,0.00021917,2]
[381114913,1756051848754,-211.15030155,0.00021917,2]
[381114914,1756051848763,-400.0,0.00021917,2]
[381114915,1756051848775,-400.0,0.00021917,2]
[381114916,1756051848785,-151.0,0.00021917,2]
[381114917,1756051848795,-747.13,0.00021917,2]
[381114918,1756051848804,-704.89,0.00021917,2]
[381114919,1756051848814,-433.48,0.00021917,2]
[381114920,1756051848824,-621.96,0.00021917,2]
[381114921,1756051848833,-400.0,0.00021917,2]
[381114922,1756051848843,-151.0,0.00021917,2]
[381114923,1756051848852,-400.0,0.00021917,2]
[381114924,1756051848861,-400.0,0.00021917,2]
[381114925,1756051848871,-400.0,0.00021917,2]
[381114926,1756051848880,-990.83,0.00021917,2]
[381114927,1756051848890,-1073.4,0.00021917,2]
[381114928,1756051848899,-400.0,0.00021917,2]
[381114929,1756051848909,-760.7,0.00021917,2]
[381114930,1756051848919,-400.0,0.00021917,2]
[381114931,1756051848928,-614.83,0.00021917,2]
[381114932,1756051848938,-614.83,0.00021917,2]
[381114933,1756051848948,-614.83,0.00021917,2]
[381114934,1756051848958,-1232.45,0.00021917,2]
[381114935,1756051848968,-624.82,0.00021917,2]
[381114936,1756051848978,-614.83,0.00021917,2]
[381114937,1756051848988,-948.97,0.00021917,2]
[381114938,1756051848998,-614.83,0.00021917,2]
[381114939,1756051849007,-400.0,0.00021917,2]
[381114940,1756051849017,-400.0,0.00021917,2]
[381114941,1756051849026,-1393.24,0.00021917,2]
[381114942,1756051849036,-400.0,0.00021917,2]
[381114943,1756051849046,-151.0,0.00021917,2]
[381114944,1756051849055,-151.0,0.00021917,2]
[381114945,1756051849065,-566.47,0.00021917,2]
[381114946,1756051849075,-937.36,0.00021917,2]
[381114947,1756051849084,-465.42,0.00021917,2]
[381114948,1756051849094,-540.0,0.00021917,2]
[381114949,1756051849103,-761.11,0.00021917,2]
[381114950,1756051849113,-411.82464815,0.00021917,2]
[381114951,1756051849122,-232.843895,0.00021917,2]
[381114952,1756051849131,-1316.2,0.00021917,2]
[381114953,1756051849141,-497.8268,0.00021917,2]
[381114954,1756051849422,-151.0,0.00021917,2]
[381114955,1756051849433,-400.0,0.00021917,2]
[381114956,1756051849442,-400.0,0.00021917,2]
[381114957,1756051849452,-480.76,0.00021917,2]
[381114958,1756051849462,-400.0,0.00021917,2]
[381114959,1756051849473,-353.6227176,0.00021917,2]
[381114960,1756051849483,-232.843895,0.00021917,2]
[381114961,1756051849493,-497.8268,0.00021917,2]
[381114962,1756051849502,-151.0,0.00021917,2]
[381114963,1756051849512,-398.469261,0.00021917,2]
[381114964,1756051849524,-232.843895,0.00021917,2]
[381114965,1756051849534,-466.35,0.00021917,2]
[381114966,1756051849546,-497.8268,0.00021917,2]
[381114967,1756051849558,-400.0,0.00021917,2]
[381114968,1756051849568,-494.82,0.00021917,2]
[381114969,1756051849578,-398.469261,0.00021917,2]
[381114970,1756051849589,-400.0,0.00021917,2]
[381114971,1756051849599,-232.843895,0.00021917,2]
[381114972,1756051849608,-497.8268,0.00021917,2]
[381114973,1756051849618,-500.0,0.00021917,2]
[381114974,1756051849631,-1191.83,0.00021917,2]
[381114975,1756051849641,-500.0,0.00021917,2]
[381114976,1756051849650,-500.0,0.00021917,2]
[381114977,1756051849660,-500.0,0.00021917,2]
[381114978,1756051849669,-151.0,0.00021917,2]
[381114979,1756051849678,-500.0,0.00021917,2]
[381114980,1756051849688,-400.0,0.00021917,2]
[381114981,1756051849698,-398.469261,0.00021917,2]
[381114982,1756051849706,-500.0,0.00021917,2]
[381114983,1756051849716,-500.0,0.00021917,2]
[381114984,1756051849726,-151.0,0.00021917,2]
[381114985,1756051849736,-1276.36,0.00021917,2]
[381114986,1756051849745,-213.31898956,0.00021917,2]
[381114987,1756051849755,-500.0,0.00021917,2]
[381114988,1756051849764,-500.0,0.00021917,2]
[381114989,1756051849779,-475.0,0.00021917,2]
[381114990,1756051849789,-398.469261,0.00021917,2]
[381114991,1756051849798,-151.0,0.00021917,2]
[381114992,1756051849808,-400.0,0.00021917,2]
[381114993,1756051849818,-818.45,0.00021917,2]
[381114994,1756051849827,-400.0,0.00021917,2]
[381114995,1756051849836,-400.0,0.00021917,2]
[381114996,1756051849845,-400.0,0.00021917,2]
[381114997,1756051849854,-400.0,0.00021917,2]
[381114998,1756051849864,-151.0,0.00021917,2]
[381114999,1756051849873,-400.0,0.00021917,2]
[381115000,1756051849882,-964.81197401,0.00021917,2]
[381115001,1756051850917,-299.43802599,0.00021917,2]
[381115002,1756051850927,-456.63109401,0.00021917,2]
[381115003,1756051851114,-170.95890599,0.00021917,2]
[381115004,1756051851123,-400.0,0.00021917,2]
[381115005,1756051851134,-1175.39,0.00021917,2]
[381115006,1756051851144,-708.41,0.00021917,2]
[381115007,1756051851153,-400.0,0.00021917,2]
[381115008,1756051851163,-400.0,0.00021917,2]
[381115009,1756051851172,-400.0,0.00021917,2]
[381115010,1756051851182,-1045.28,0.00021917,2]
[381115011,1756051851192,-151.0,0.00021917,2]
[381115012,1756051851201,-400.0,0.00021917,2]
[381115013,1756051851210,-400.0,0.00021917,2]
[381115014,1756051851220,-400.0,0.00021917,2]
[381115015,1756051851229,-400.0,0.00021917,2]
[381115016,1756051851238,-151.0,0.00021917,2]
[381115017,1756051851247,-400.0,0.00021917,2]
[381115018,1756051851256,-151.0,0.00021917,2]
[381115019,1756051851266,-400.0,0.00021917,2]
[381115020,1756051851276,-400.0,0.00021917,2]
[381115021,1756051851286,-433.35,0.00021917,2]
[381115022,1756051851296,-808.59,0.00021917,2]
[381115023,1756051851305,-400.0,0.00021917,2]
[381115024,1756051851314,-400.0,0.00021917,2]
[381115025,1756051851325,-400.0,0.00021917,2]
[381115026,1756051851334,-400.0,0.00021917,2]
[381115027,1756051851344,-400.0,0.00021917,2]
[381115028,1756051851353,-400.0,0.00021917,2]
[381115029,1756051851362,-1071.33,0.00021917,2]
[381115030,1756051851372,-595.1,0.00021917,2]
[381115031,1756051851381,-1400.86,0.00021917,2]